fUSD/lending_fUSD_20240329
["ID","MTS","AMOUNT","RATE_DAILY","PERIOD"]
[320987909,1711731050856,-184.64,0.00052328,120]
[320987910,1711731050865,-500.0,0.00052328,120]
[320987911,1711731050876,-500.0,0.00052328,120]
[320987912,1711731050885,-500.0,0.00052328,120]
[320987913,1711731050895,-518.98,0.00052328,120]
[320987914,1711731050905,-500.0,0.00052328,120]
[320987915,1711731050915,-500.0,0.00052328,120]
[320987916,1711731050924,-3061.59,0.00052328,120]
[320987917,1711731050934,-500.0,0.00052328,120]
[320987918,1711731050944,-500.0,0.00052328,120]
[320987919,1711731050954,-1390.08,0.00052328,120]
[320987920,1711731050964,-500.0,0.00052328,120]
[320987921,1711731050974,-500.0,0.00052328,120]
[320987922,1711731050984,-530.97,0.00052328,120]
[320987923,1711731050993,-3852.22,0.00052328,120]
[320987924,1711731051003,-500.0,0.00052328,120]
[320987925,1711731051013,-500.0,0.00052328,120]
[320987926,1711731051023,-500.0,0.00052328,120]
[320987927,1711731051033,-544.11,0.00052328,120]
[320987928,1711731051043,-2548.58,0.00052328,120]
[320987929,1711731051053,-325.69,0.00052328,120]
[320987930,1711731051063,-899.89,0.00052328,120]
[320987931,1711731051073,-500.0,0.00052328,120]
[320987932,1711731051083,-798.72,0.00052328,120]
[320987933,1711731051105,-308.29,0.00052328,7]
[320987934,1711731051115,-500.0,0.00052328,120]
[320987935,1711731051125,-4366.75,0.00052328,120]
[320987936,1711731051135,-500.0,0.00052328,120]
[320987937,1711731051146,-2832.13,0.00052328,120]
[320987938,1711731051156,-2658.97,0.00052328,120]
[320987939,1711731051166,-587.1,0.00052328,120]
[320987940,1711731051175,-500.0,0.00052328,120]
[320987941,1711731051185,-723.25,0.00052328,120]
[320987942,1711731051194,-500.0,0.00052328,120]
[320987943,1711731051203,-500.0,0.00052328,120]
[320987944,1711731051213,-5388.93,0.00052328,120]
[320987945,1711731051222,-500.0,0.00052328,120]
[320987946,1711731051232,-500.0,0.00052328,120]
[320987947,1711731051241,-2529.92,0.00052328,120]
[320987948,1711731051252,-500.0,0.00052328,120]
[320987949,1711731051261,-500.0,0.00052328,120]
[320987950,1711731051270,-2639.85,0.00052328,120]
[320987951,1711731051279,-500.0,0.00052328,120]
[320987952,1711731051289,-2241.07,0.00052328,120]
[320987953,1711731051298,-500.0,0.00052328,120]
[320987954,1711731051307,-13691.43,0.00052328,120]
[320987955,1711731051317,-555.0279115,0.00052328,120]
[320987956,1711731051326,-516.61,0.00052328,120]
[320987957,1711731051335,-536.48,0.00052328,120]
[320987958,1711731051344,-500.0,0.00052328,120]
[320987959,1711731051354,-2802.83,0.00052328,120]
[320987960,1711731051364,-555.34,0.00052328,120]
[320987961,1711731051373,-500.0,0.00052328,120]
[320987962,1711731051382,-500.0,0.00052328,120]
[320987963,1711731051392,-500.0,0.00052328,120]
[320987964,1711731051401,-524.62,0.00052328,120]
[320987965,1711731051411,-2876.77,0.00052328,120]
[320987966,1711731051421,-1992.91,0.00052328,120]
[320987967,1711731051431,-500.0,0.00052328,120]
[320987968,1711731051441,-500.0,0.00052328,120]
[320987969,1711731051450,-500.0,0.00052328,120]
[320987970,1711731051460,-500.0,0.00052328,120]
[320987971,1711731051471,-500.0,0.00052328,120]
[320987972,1711731051480,-500.0,0.00052328,120]
[320987973,1711731051491,-500.0,0.00052328,120]
[320987974,1711731051502,-527.12,0.00052328,120]
[320987975,1711731051512,-500.0,0.00052328,120]
[320987976,1711731051523,-671.7,0.00052328,120]
[320987977,1711731051533,-543.55,0.00052328,120]
[320987978,1711731051544,-2310.88,0.00052328,120]
[320987979,1711731051554,-500.0,0.00052328,120]
[320987980,1711731051565,-3596.62,0.00052328,120]
[320987981,1711731051574,-549.36,0.00052328,120]
[320987982,1711731051585,-545.1,0.00052328,120]
[320987983,1711731051596,-500.0,0.00052328,120]
[320987984,1711731051606,-1000.0,0.00052328,14]
[320987985,1711731051616,-500.0,0.00052328,120]
[320987986,1711731051627,-762.26,0.00052328,120]
[320987987,1711731051637,-500.0,0.00052328,80]
[320987988,1711731051647,-500.0,0.00052328,120]
[320987989,1711731051657,-500.0,0.00052328,120]
[320987990,1711731051668,-500.0,0.00052328,120]
[320987991,1711731051678,-5212.23,0.00052328,120]
[320987992,1711731051689,-532.23,0.00052328,120]
[320987993,1711731051699,-500.0,0.00052328,120]
[320987994,1711731051710,-500.0,0.00052328,120]
[320987995,1711731051719,-500.0,0.00052328,120]
[320987996,1711731051728,-500.0,0.00052328,120]
[320987997,1711731051738,-500.0,0.00052328,120]
[320987998,1711731051750,-838.76,0.00052328,120]
[320987999,1711731051759,-500.0,0.00052328,120]
[320988000,1711731051768,-688.85,0.00052328,120]
[320988001,1711731051777,-500.0,0.00052328,120]
[320988002,1711731051787,-500.0,0.00052328,120]
[320988003,1711731051800,-1392.06,0.00052328,120]
[320988004,1711731051811,-500.0,0.00052328,120]
[320988005,1711731051821,-630.06,0.00052328,120]
[320988006,1711731051832,-500.0,0.00052328,120]
[320988007,1711731051842,-500.0,0.00052328,120]
[320988008,1711731051851,-500.0,0.00052328,120]
[320988009,1711731051861,-610.57,0.00052328,120]
[320988010,1711731051871,-500.0,0.00052328,120]
[320988011,1711731051881,-1553.83,0.00052328,120]
[320988012,1711731051891,-570.48,0.00052328,120]
[320988013,1711731051901,-500.0,0.00052328,120]
[320988014,1711731051911,-533.63,0.00052328,120]
[320988015,1711731051921,-1299.22,0.00052328,120]
[320988016,1711731051932,-500.0,0.00052328,120]
[320988017,1711731051943,-500.0,0.00052328,120]
[320988018,1711731051953,-531.65,0.00052328,120]
[320988019,1711731051963,-500.0,0.00052328,120]
[320988020,1711731051972,-500.0,0.00052328,120]
[320988021,1711731051982,-3220.74,0.00052328,120]
[320988022,1711731051991,-2611.36,0.00052328,120]
[320988023,1711731052002,-1080.91,0.00052328,120]
[320988024,1711731052012,-617.12,0.00052328,120]
[320988025,1711731052021,-500.0,0.00052328,120]
[320988026,1711731052031,-500.0,0.00052328,120]
[320988027,1711731052040,-500.0,0.00052328,120]
[320988028,1711731052050,-6640.01,0.00052328,120]
[320988029,1711731052059,-622.83,0.00052328,120]
[320988030,1711731052068,-2395.31,0.00052328,120]
[320988031,1711731052077,-500.0,0.00052328,120]
[320988032,1711731052087,-500.0,0.00052328,120]
[320988033,1711731052095,-616.27,0.00052328,120]
[320988034,1711731052105,-500.0,0.00052328,120]
[320988035,1711731052114,-500.0,0.00052328,120]
[320988036,1711731052124,-723.84,0.00052328,120]
[320988037,1711731052133,-7687.49,0.00052328,120]
[320988038,1711731052143,-500.0,0.00052328,120]
[320988039,1711731052152,-500.0,0.00052328,120]
[320988040,1711731052162,-500.0,0.00052328,120]
[320988041,1711731052173,-500.0,0.00052328,120]
[320988042,1711731052183,-500.0,0.00052328,120]
[320988043,1711731052193,-595.73,0.00052328,120]
[320988044,1711731052202,-500.0,0.00052328,120]
[320988045,1711731052211,-819.41,0.00052328,120]
[320988046,1711731052220,-500.0,0.00052328,120]
[320988047,1711731052229,-905.05,0.00052328,120]
[320988048,1711731052238,-2738.82,0.00052328,120]
[320988049,1711731052249,-500.0,0.00052328,120]
[320988050,1711731052259,-3086.07,0.00052328,120]
[320988051,1711731052268,-1875.18,0.00052328,120]
[320988052,1711731052277,-500.0,0.00052328,120]
[320988053,1711731052286,-510.71841243,0.00052328,120]
[320988054,1711731052295,-2093.61,0.00052328,120]
[320988055,1711731052305,-500.0,0.00052328,60]
[320988056,1711731052315,-7651.47,0.00052328,120]
[320988057,1711731052324,-4165.02,0.00052328,120]
[320988058,1711731052334,-3539.77,0.00052328,120]
[320988059,1711731052348,-366.45,0.00052328,120]
[320988060,1711731052358,-218.54,0.00052328,120]
[320988061,1711731052368,-1606.38,0.00052328,120]
[320988062,1711731052378,-500.0,0.00052328,120]
[320988063,1711731052388,-3005.88,0.00052328,120]
[320988064,1711731052399,-2774.07,0.00052328,120]
[320988065,1711731052409,-2154.85,0.00052328,120]
[320988066,1711731052419,-500.0,0.00052328,120]
[320988067,1711731052428,-500.0,0.00052328,120]
[320988068,1711731052438,-500.0,0.00052328,2]
[320988069,1711731052448,-500.0,0.00052328,2]
[320988070,1711731052458,-576.12,0.00052328,120]
[320988071,1711731052468,-589.34,0.00052328,120]
[320988072,1711731052478,-500.0,0.00052328,120]
[320988073,1711731052490,-1154.67,0.00052328,120]
[320988074,1711731052502,-500.0,0.00052328,120]
[320988075,1711731052513,-500.0,0.00052328,120]
[320988076,1711731052524,-1991.81,0.00052328,120]
[320988077,1711731052534,-2448.83,0.00052328,120]
[320988078,1711731052545,-500.0,0.00052328,120]
[320988079,1711731052555,-577.80636207,0.00052328,120]
[320988080,1711731052565,-500.0,0.00052328,120]
[320988081,1711731052575,-2369.82,0.00052328,120]
[320988082,1711731052585,-500.0,0.00052328,120]
[320988083,1711731052595,-500.0,0.00052328,120]
[320988084,1711731052604,-904.7,0.00052328,120]
[320988085,1711731052614,-500.0,0.00052328,120]
[320988086,1711731052623,-544.8,0.00052328,120]
[320988087,1711731052633,-500.0,0.00052328,120]
[320988088,1711731052643,-1684.1,0.00052328,120]
[320988089,1711731052653,-6471.64,0.00052328,120]
[320988090,1711731052662,-428.61,0.00052328,120]
[320988091,1711731052672,-4037.26,0.00052328,21]
[320988092,1711731052682,-2486.15,0.00052328,120]
[320988093,1711731052692,-1722.55,0.00052328,120]
[320988094,1711731052701,-1325.8,0.00052328,120]
[320988095,1711731052711,-500.0,0.00052328,120]
[320988096,1711731052721,-2956.53,0.00052328,120]
[320988097,1711731052730,-4113.57,0.00052328,120]
[320988098,1711731052741,-500.0,0.00052328,120]
[320988099,1711731052752,-500.0,0.00052328,120]
[320988100,1711731052762,-500.0,0.00052328,120]
[320988101,1711731052771,-500.0,0.00052328,120]
[320988102,1711731052781,-915.79,0.00052328,120]
[320988103,1711731052791,-500.0,0.00052328,120]
[320988104,1711731052801,-1595.2,0.00052328,120]
[320988105,1711731052811,-500.0,0.00052328,120]
[320988106,1711731052821,-500.0,0.00052328,120]
[320988107,1711731052832,-684.51,0.00052328,120]
[320988108,1711731052841,-500.0,0.00052328,120]
[320988109,1711731052851,-500.0,0.00052328,120]
[320988110,1711731052861,-500.0,0.00052328,120]
[320988111,1711731052870,-500.0,0.00052328,120]
[320988112,1711731052884,-2976.3,0.00052328,120]
[320988113,1711731052894,-500.0,0.00052328,120]
[320988114,1711731052904,-1003.25,0.00052328,120]
[320988115,1711731052913,-500.0,0.00052328,120]
[320988116,1711731052923,-1221.75,0.00052328,120]
[320988117,1711731052934,-500.0,0.00052328,120]
[320988118,1711731052943,-500.0,0.00052328,120]
[320988119,1711731052953,-500.0,0.00052328,120]
[320988120,1711731052963,-500.0,0.00052328,120]
[320988121,1711731052973,-762.15,0.00052328,120]
[320988122,1711731052982,-500.0,0.00052328,120]
[320988123,1711731052992,-500.0,0.00052328,120]
[320988124,1711731053004,-500.0,0.00052328,120]
[320988125,1711731053014,-562.03,0.00052328,120]
[320988126,1711731053024,-500.0,0.00052328,120]
[320988127,1711731053033,-500.0,0.00052328,120]
[320988128,1711731053043,-500.0,0.00052328,120]
[320988129,1711731053053,-500.0,0.00052328,120]
[320988130,1711731053063,-500.0,0.00052328,120]
[320988131,1711731053073,-500.0,0.00052328,120]
[320988132,1711731053083,-1898.46,0.00052328,120]
[320988133,1711731053092,-500.0,0.00052328,120]
[320988134,1711731053102,-500.0,0.00052328,120]
[320988135,1711731053112,-3412.66,0.00052328,120]
[320988136,1711731053122,-1000.0,0.00052345,120]
[320988137,1711731053131,-1000.0,0.00052387,120]
[320988138,1711731053141,-1000.0,0.00052428,120]
[320988139,1711731053152,-1000.0,0.0005247,120]
[320988140,1711731053162,-557.79739,0.0005247,61]
[320988141,1711731053172,-454.05,0.00052486,2]
[320988142,1711731053182,-314.065626,0.00052498,111]
[320988143,1711731053192,-1000.0,0.000525,120]
[320988144,1711731053202,-1116.09230725,0.00052502,2]
[320988145,1711731053212,-1000.0,0.00052511,120]
[320988146,1711731053221,-153.14766611,0.00052521,60]
[320988147,1711731053232,-1000.0,0.00052553,120]
[320988148,1711731053241,-150.5,0.00052572,15]
[320988149,1711731053254,-150.5,0.00052582,15]
[320988150,1711731053263,-150.5,0.00052592,15]
[320988151,1711731053273,-1000.0,0.00052594,120]
[320988152,1711731053282,-610.95,0.00052602,120]
[320988153,1711731053291,-500.0,0.00052602,120]
[320988154,1711731053301,-500.0,0.00052602,120]
[320988155,1711731053310,-500.0,0.00052602,120]
[320988156,1711731053320,-500.0,0.00052602,120]
[320988157,1711731053330,-500.0,0.00052602,120]
[320988158,1711731053340,-500.0,0.00052602,120]
[320988159,1711731053349,-500.0,0.00052602,120]
[320988160,1711731053358,-500.0,0.00052602,120]
[320988161,1711731053368,-500.0,0.00052602,120]
[320988162,1711731053377,-500.0,0.00052602,120]
[320988163,1711731053387,-500.0,0.00052602,120]
[320988164,1711731053396,-500.0,0.00052602,120]
[320988165,1711731053406,-500.0,0.00052602,120]
[320988166,1711731053417,-232.63,0.00052602,120]
[320988167,1711731053427,-500.0,0.00052602,120]
[320988168,1711731053437,-551.8,0.00052602,120]
[320988169,1711731053446,-500.0,0.00052602,120]
[320988170,1711731053456,-500.0,0.00052602,120]
[320988171,1711731053465,-500.0,0.00052602,120]
[320988172,1711731053475,-500.0,0.00052602,120]
[320988173,1711731053485,-500.0,0.00052602,120]
[320988174,1711731053496,-500.0,0.00052602,120]
[320988175,1711731053507,-500.0,0.00052602,120]
[320988176,1711731053518,-500.0,0.00052602,120]
[320988177,1711731053528,-500.0,0.00052602,120]
[320988178,1711731053538,-500.0,0.00052602,120]
[320988179,1711731053548,-500.0,0.00052602,120]
[320988180,1711731053557,-391.05,0.00052602,120]
[320988181,1711731053567,-500.0,0.00052602,120]
[320988182,1711731053576,-500.0,0.00052602,2]
[320988183,1711731053586,-500.0,0.00052602,120]
[320988184,1711731053596,-500.0,0.00052602,2]
[320988185,1711731053607,-500.0,0.00052602,120]
[320988186,1711731053617,-500.0,0.00052602,120]
[320988187,1711731053626,-553.23,0.00052602,120]
[320988188,1711731053637,-500.0,0.00052602,120]
[320988189,1711731053646,-500.0,0.00052602,120]
[320988190,1711731053657,-568.51,0.00052602,120]
[320988191,1711731053667,-500.0,0.00052602,120]
[320988192,1711731053678,-500.0,0.00052602,120]
[320988193,1711731053690,-599.96,0.00052602,120]
[320988194,1711731053702,-500.0,0.00052602,120]
[320988195,1711731053714,-500.0,0.00052602,120]
[320988196,1711731053725,-1041.23,0.00052602,120]
[320988197,1711731053737,-500.0,0.00052602,120]
[320988198,1711731053751,-550.99,0.00052602,120]
[320988199,1711731053969,-500.0,0.00052602,120]
[320988200,1711731053980,-500.0,0.00052602,120]
[320988201,1711731053991,-500.0,0.00052602,120]
[320988202,1711731054001,-500.0,0.00052602,120]
[320988203,1711731054010,-500.0,0.00052602,120]
[320988204,1711731054020,-500.0,0.00052602,15]
[320988205,1711731054030,-500.0,0.00052602,120]
[320988206,1711731054040,-500.0,0.00052602,120]
[320988207,1711731054050,-541.27069194,0.00052602,120]
[320988208,1711731054060,-500.0,0.00052602,120]
[320988209,1711731054071,-605.29,0.00052602,120]
[320988210,1711731054081,-500.0,0.00052602,120]
[320988211,1711731054091,-500.0,0.00052602,120]
[320988212,1711731054102,-500.0,0.00052602,120]
[320988213,1711731054111,-500.0,0.00052602,120]
[320988214,1711731054121,-500.0,0.00052602,120]
[320988215,1711731054131,-500.0,0.00052602,120]
[320988216,1711731054141,-500.0,0.00052602,120]
[320988217,1711731054151,-500.0,0.00052602,120]
[320988218,1711731054161,-500.0,0.00052602,120]
[320988219,1711731054171,-500.0,0.00052602,120]
[320988220,1711731054182,-500.0,0.00052602,120]
[320988221,1711731054192,-500.0,0.00052602,7]
[320988222,1711731054202,-363.87,0.00052602,120]
[320988223,1711731054212,-500.0,0.00052602,120]
[320988224,1711731054222,-500.0,0.00052602,120]
[320988225,1711731054233,-460.51357745,0.00052602,120]
[320988226,1711731054242,-500.0,0.00052602,120]
[320988227,1711731054254,-500.0,0.00052602,120]
[320988228,1711731054264,-500.0,0.00052602,120]
[320988229,1711731054274,-500.0,0.00052602,120]
[320988230,1711731054284,-500.0,0.00052602,120]
[320988231,1711731054294,-500.0,0.00052602,120]
[320988232,1711731054305,-452.25,0.00052602,120]
[320988233,1711731054315,-500.0,0.00052602,120]
[320988235,1711731054324,-500.0,0.00052602,120]
[320988236,1711731054335,-500.0,0.00052602,120]
[320988237,1711731054345,-500.0,0.00052602,120]
[320988238,1711731054355,-500.0,0.00052602,120]
[320988239,1711731054365,-500.0,0.00052602,120]
[320988240,1711731054375,-500.0,0.00052602,120]
[320988241,1711731054384,-500.0,0.00052602,120]
[320988242,1711731054394,-239.48,0.00052602,120]
[320988243,1711731054403,-537.3971664,0.00052602,120]
[320988244,1711731054413,-500.0,0.00052602,120]
[320988245,1711731054423,-1717.8,0.00052602,120]
[320988246,1711731054433,-500.0,0.00052602,120]
[320988247,1711731054443,-526.86529362,0.00052602,120]
[320988248,1711731054453,-500.0,0.00052602,120]
[320988249,1711731054462,-500.0,0.00052602,120]
[320988250,1711731054472,-500.0,0.00052602,120]
[320988251,1711731054483,-194.29,0.00052602,120]
[320988252,1711731054495,-500.0,0.00052602,120]
[320988253,1711731054507,-500.0,0.00052602,120]
[320988254,1711731054518,-500.0,0.00052602,120]
[320988255,1711731054528,-160.07,0.00052602,120]
[320988256,1711731054539,-500.0,0.00052602,120]
[320988257,1711731054550,-500.0,0.00052602,120]
[320988258,1711731054561,-500.0,0.00052602,120]
[320988259,1711731054573,-500.0,0.00052602,120]
[320988260,1711731054583,-500.0,0.00052602,120]
[320988261,1711731054593,-500.0,0.00052602,120]
[320988262,1711731054604,-500.0,0.00052602,120]
[320988263,1711731054615,-506.13676818,0.00052602,120]
[320988264,1711731054626,-500.0,0.00052602,120]
[320988265,1711731054638,-500.0,0.00052602,120]
[320988266,1711731054649,-500.0,0.00052602,120]
[320988267,1711731054659,-500.0,0.00052602,120]
[320988268,1711731054669,-293.95,0.00052602,120]
[320988269,1711731054679,-500.0,0.00052602,120]
[320988270,1711731054701,-500.0,0.00052602,120]
[320988271,1711731054714,-550.7,0.00052602,120]
[320988272,1711731054726,-500.0,0.00052602,120]
[320988273,1711731054737,-500.0,0.00052602,120]
[320988274,1711731054749,-500.0,0.00052602,120]
[320988275,1711731054760,-500.0,0.00052602,120]
[320988276,1711731054771,-523.84,0.00052602,120]
[320988277,1711731054783,-500.0,0.00052602,120]
[320988278,1711731054794,-500.0,0.00052602,120]
[320988279,1711731054805,-500.0,0.00052602,120]
[320988280,1711731054815,-500.0,0.00052602,120]
[320988281,1711731054827,-500.0,0.00052602,120]
[320988282,1711731054839,-196.44,0.00052602,120]
[320988283,1711731054851,-500.0,0.00052602,120]
[320988284,1711731054864,-500.0,0.00052602,120]
[320988285,1711731054876,-617.75434315,0.00052602,120]
[320988286,1711731054889,-500.0,0.00052602,120]
[320988287,1711731054901,-500.0,0.00052602,120]
[320988288,1711731054913,-984.5,0.00052602,120]
[320988289,1711731054925,-500.0,0.00052602,120]
[320988290,1711731054937,-500.0,0.00052602,120]
[320988291,1711731054949,-1573.3,0.00052602,120]
[320988292,1711731054961,-500.0,0.00052602,120]
[320988293,1711731054975,-500.0,0.00052602,120]
[320988294,1711731054989,-500.0,0.00052602,120]
[320988295,1711731055005,-500.0,0.00052602,120]
[320988296,1711731055220,-500.0,0.00052602,120]
[320988297,1711731055248,-500.0,0.00052602,120]
[320988298,1711731055260,-534.19,0.00052602,120]
[320988299,1711731055269,-500.0,0.00052602,120]
[320988300,1711731055279,-500.0,0.00052602,120]
[320988301,1711731055288,-500.0,0.00052602,120]
[320988302,1711731055298,-500.0,0.00052602,120]
[320988303,1711731055307,-500.0,0.00052602,120]
[320988304,1711731055317,-500.0,0.00052602,120]
[320988305,1711731055327,-500.0,0.00052602,120]
[320988306,1711731055337,-544.09,0.00052602,120]
[320988307,1711731055347,-500.0,0.00052602,120]
[320988308,1711731055357,-500.0,0.00052602,120]
[320988309,1711731055367,-500.0,0.00052602,120]
[320988310,1711731055377,-500.0,0.00052602,120]
[320988311,1711731055387,-500.0,0.00052602,120]
[320988312,1711731055397,-500.0,0.00052602,120]
[320988313,1711731055407,-215.71,0.00052602,120]
[320988314,1711731055416,-3061.59,0.00052602,120]
[320988315,1711731055426,-500.0,0.00052602,120]
[320988316,1711731055436,-1390.08,0.00052602,120]
[320988317,1711731055445,-500.0,0.00052602,120]
[320988318,1711731055454,-500.0,0.00052602,120]
[320988319,1711731055464,-500.0,0.00052602,120]
[320988320,1711731055473,-530.97,0.00052602,120]
[320988321,1711731055482,-3852.22,0.00052602,120]
[320988322,1711731055492,-500.0,0.00052602,120]
[320988323,1711731055506,-500.0,0.00052602,120]
[320988324,1711731055516,-500.0,0.00052602,120]
[320988325,1711731055525,-544.11,0.00052602,120]
[320988326,1711731055535,-2548.58,0.00052602,120]
[320988327,1711731055545,-899.89,0.00052602,120]
[320988328,1711731055555,-500.0,0.00052602,120]
[320988329,1711731055565,-798.72,0.00052602,120]
[320988330,1711731055574,-500.0,0.00052602,120]
[320988331,1711731055585,-4366.75,0.00052602,120]
[320988332,1711731055594,-509.69,0.00052602,120]
[320988333,1711731055603,-2832.13,0.00052602,120]
[320988334,1711731055613,-2658.97,0.00052602,120]
[320988335,1711731055622,-587.1,0.00052602,120]
[320988336,1711731055632,-548.63320981,0.00052602,120]
[320988337,1711731055641,-723.25,0.00052602,120]
[320988338,1711731055650,-500.0,0.00052602,120]
[320988339,1711731055660,-5388.93,0.00052602,120]
[320988340,1711731055669,-500.0,0.00052602,120]
[320988341,1711731055679,-500.0,0.00052602,120]
[320988342,1711731055688,-2529.92,0.00052602,120]
[320988343,1711731055698,-500.0,0.00052602,120]
[320988344,1711731055707,-500.0,0.00052602,120]
[320988345,1711731055717,-2639.85,0.00052602,120]
[320988346,1711731055726,-500.0,0.00052602,120]
[320988347,1711731055736,-2241.07,0.00052602,120]
[320988348,1711731055745,-500.0,0.00052602,120]
[320988349,1711731055757,-13691.43,0.00052602,120]
[320988350,1711731055766,-536.48,0.00052602,120]
[320988351,1711731055775,-500.0,0.00052602,120]
[320988352,1711731055784,-2802.83,0.00052602,120]
[320988353,1711731055794,-500.0,0.00052602,120]
[320988354,1711731055803,-500.0,0.00052602,120]
[320988355,1711731055813,-500.0,0.00052602,120]
[320988356,1711731055822,-2876.77,0.00052602,120]
[320988357,1711731055832,-621.29,0.00052602,120]
[320988358,1711731055841,-1992.91,0.00052602,120]
[320988359,1711731055851,-500.0,0.00052602,120]
[320988360,1711731055860,-500.0,0.00052602,120]
[320988361,1711731055870,-500.0,0.00052602,120]
[320988362,1711731055879,-500.0,0.00052602,120]
[320988363,1711731055888,-500.0,0.00052602,120]
[320988364,1711731055897,-527.12,0.00052602,120]
[320988365,1711731055906,-500.0,0.00052602,120]
[320988366,1711731055915,-671.7,0.00052602,120]
[320988367,1711731055924,-543.55,0.00052602,120]
[320988368,1711731055934,-2310.88,0.00052602,120]
[320988369,1711731055944,-500.0,0.00052602,120]
[320988370,1711731055953,-3596.62,0.00052602,120]
[320988371,1711731055963,-549.36,0.00052602,120]
[320988372,1711731055972,-500.0,0.00052602,120]
[320988373,1711731055981,-500.0,0.00052602,120]
[320988374,1711731055991,-762.26,0.00052602,120]
[320988375,1711731056001,-500.0,0.00052602,80]
[320988376,1711731056010,-500.0,0.00052602,120]
[320988377,1711731056019,-500.0,0.00052602,120]
[320988378,1711731056029,-5212.23,0.00052602,120]
[320988379,1711731056038,-532.23,0.00052602,120]
[320988380,1711731056047,-500.0,0.00052602,120]
[320988381,1711731056057,-500.0,0.00052602,120]
[320988382,1711731056066,-500.0,0.00052602,120]
[320988383,1711731056076,-838.76,0.00052602,120]
[320988384,1711731056086,-500.0,0.00052602,120]
[320988385,1711731056095,-688.85,0.00052602,120]
[320988386,1711731056104,-500.0,0.00052602,120]
[320988387,1711731056114,-1392.06,0.00052602,120]
[320988388,1711731056123,-500.0,0.00052602,120]
[320988389,1711731056133,-630.06,0.00052602,120]
[320988390,1711731056143,-500.0,0.00052602,120]
[320988391,1711731056152,-500.0,0.00052602,120]
[320988392,1711731056161,-500.0,0.00052602,120]
[320988393,1711731056170,-610.57,0.00052602,120]
[320988394,1711731056179,-500.0,0.00052602,120]
[320988395,1711731056189,-1553.83,0.00052602,120]
[320988396,1711731056199,-533.63,0.00052602,120]
[320988397,1711731056208,-1299.22,0.00052602,120]
[320988398,1711731056218,-562.09,0.00052602,120]
[320988399,1711731056227,-500.0,0.00052602,120]
[320988400,1711731056237,-531.65,0.00052602,120]
[320988401,1711731056246,-500.0,0.00052602,120]
[320988402,1711731056258,-500.0,0.00052602,120]
[320988403,1711731056267,-3220.74,0.00052602,120]
[320988404,1711731056277,-2611.36,0.00052602,120]
[320988405,1711731056287,-617.12,0.00052602,120]
[320988406,1711731056297,-1080.91,0.00052602,120]
[320988407,1711731056307,-238.73,0.00052602,120]
[320988408,1711731056317,-384.88852701,0.00052602,120]
[320988409,1711731056326,-500.0,0.00052602,120]